{"text_format":"1","workbook":"xlsx","n_sheets":2,"sheets":["weekrooster","printblad"],"not_rendered":{"charts":0,"images":0,"macros":1,"external_links":0,"defined_names":2,"comments":0,"pivot_tables":0},"unopened":[],"bounds":{"document_bytes":16777216,"sheet_cells":100000,"rows_first":2000,"rows_last":500,"rows_between":2000,"halvings":0,"cell_chars":16384,"cell_head_chars":4096},"cells_cut":0,"cells_raw":0,"read":"whole","date_system":"1900"}

{"sheet":"weekrooster","index":0,"n_rows":107,"n_cols":40,"rows_kept":107,"cut":false,"hidden":false,"merged":[[2,2,2,3],[3,2,3,3],[43,2,43,4],[5,2,5,13],[2,4,2,6],[3,4,3,6],[8,3,10,3],[11,3,12,3],[8,2,12,2],[13,2,17,2],[13,3,15,3],[16,3,17,3],[18,2,22,2],[18,3,20,3],[21,3,22,3],[23,2,27,2],[23,3,25,3],[26,3,27,3],[38,2,42,2],[38,3,40,3],[41,3,42,3],[28,2,32,2],[28,3,30,3],[31,3,32,3],[33,2,37,2],[33,3,35,3],[36,3,37,3],[2,28,2,29],[2,30,2,32],[3,28,3,29],[3,30,3,32],[5,28,5,39],[8,28,12,28],[8,29,10,29],[11,29,12,29],[13,28,17,28],[13,29,15,29],[16,29,17,29],[18,28,22,28],[18,29,20,29],[21,29,22,29],[23,28,27,28],[23,29,25,29],[26,29,27,29],[28,28,32,28],[28,29,30,29],[31,29,32,29],[33,28,37,28],[33,29,35,29],[36,29,37,29],[38,28,42,28],[38,29,40,29],[41,29,42,29],[43,28,43,30],[52,28,52,29],[52,30,52,32],[53,28,53,29],[53,30,53,32],[55,28,55,39],[58,28,62,28],[58,29,60,29],[61,29,62,29],[63,28,67,28],[63,29,65,29],[66,29,67,29],[68,28,72,28],[68,29,70,29],[71,29,72,29],[73,28,77,28],[73,29,75,29],[76,29,77,29],[78,28,82,28],[78,29,80,29],[81,29,82,29],[93,28,93,30],[83,28,87,28],[83,29,85,29],[86,29,87,29],[88,28,92,28],[88,29,90,29],[91,29,92,29]]}
[]
[]
[null,null,"Naam",null,null,null,null,null,null,null,null,null,null,null,null,null,null,null,null,null,null,null,null,null,null,null,null,null,"Kandidaatnaam:"]
[null,null,"Klas",null,null,null,null,null,null,null,null,null,null,null,null,null,null,null,null,null,null,null,null,null,null,null,null,null,"Kandidaatnummer:"]
[]
[null,null,"weekrooster",null,null,null,null,null,null,null,null,null,null,null,null,null,null,null,null,null,null,null,null,null,null,null,null,null,"weekrooster"]
[]
[null,null,"dag","afdeling","tijd","nodig","Finn","Daisy","Ensar","Melike","Fierle","Martijn","Jack","Luca",null,null,null,null,null,null,null,null,null,null,null,null,null,null,"dag","afdeling","tijd","nodig","Finn","Daisy","Ensar","Melike","Fierle","Martijn","Jack","Luca"]
[null,null,"maandag","keuken","10.00 - 14.00",0,null,null,null,null,null,null,null,null,null,null,null,null,null,null,null,null,null,null,null,null,null,null,"maandag","keuken","10.00 - 14.00",0]
[null,null,null,null,"14.00 - 18.00",0,null,null,null,null,null,null,null,null,null,null,null,null,null,null,null,null,null,null,null,null,null,null,null,null,"14.00 - 18.00",0]
[null,null,null,null,"18.00 - 22.00",0,null,null,null,null,null,null,null,null,null,null,null,null,null,null,null,null,null,null,null,null,null,null,null,null,"18.00 - 22.00",0]
[null,null,null,"restaurant","08.00 - 12.00",0,null,null,null,null,null,null,null,null,null,null,null,null,null,null,null,null,null,null,null,null,null,null,null,"tuin","08.00 - 12.00",0]
[null,null,null,null,"13.00 - 17.00",1,null,null,null,null,null,null,null,null,null,null,null,null,null,null,null,null,null,null,null,null,null,null,null,null,"13.00 - 17.00",1]
[null,null,"dinsdag","keuken","10.00 - 14.00",0,null,null,null,null,null,null,null,null,null,null,null,null,null,null,null,null,null,null,null,null,null,null,"dinsdag","keuken","10.00 - 14.00",0]
[null,null,null,null,"14.00 - 18.00",2,null,null,null,null,null,null,null,null,null,null,null,null,null,null,null,null,null,null,null,null,null,null,null,null,"14.00 - 18.00",2]
[null,null,null,null,"18.00 - 22.00",2,null,null,null,null,null,null,null,null,null,null,null,null,null,null,null,null,null,null,null,null,null,null,null,null,"18.00 - 22.00",2]
[null,null,null,"restaurant","08.00 - 12.00",1,null,null,null,null,null,null,null,null,null,null,null,null,null,null,null,null,null,null,null,null,null,null,null,"tuin","08.00 - 12.00",1]
[null,null,null,null,"13.00 - 17.00",1,null,null,null,null,null,null,null,null,null,null,null,null,null,null,null,null,null,null,null,null,null,null,null,null,"13.00 - 17.00",1]
[null,null,"woensdag","keuken","10.00 - 14.00",1,null,null,null,null,null,null,null,null,null,null,null,null,null,null,null,null,null,null,null,null,null,null,"woensdag","keuken","10.00 - 14.00",1]
[null,null,null,null,"14.00 - 18.00",1,null,null,null,null,null,null,null,null,null,null,null,null,null,null,null,null,null,null,null,null,null,null,null,null,"14.00 - 18.00",1]
[null,null,null,null,"18.00 - 22.00",2,null,null,null,null,null,null,null,null,null,null,null,null,null,null,null,null,null,null,null,null,null,null,null,null,"18.00 - 22.00",2]
[null,null,null,"restaurant","08.00 - 12.00",1,null,null,null,null,null,null,null,null,null,null,null,null,null,null,null,null,null,null,null,null,null,null,null,"tuin","08.00 - 12.00",1]
[null,null,null,null,"13.00 - 17.00",1,null,null,null,null,null,null,null,null,null,null,null,null,null,null,null,null,null,null,null,null,null,null,null,null,"13.00 - 17.00",1]
[null,null,"donderdag","keuken","10.00 - 14.00",2,null,null,null,null,null,null,null,null,null,null,null,null,null,null,null,null,null,null,null,null,null,null,"donderdag","keuken","10.00 - 14.00",2]
[null,null,null,null,"14.00 - 18.00",2,null,null,null,null,null,null,null,null,null,null,null,null,null,null,null,null,null,null,null,null,null,null,null,null,"14.00 - 18.00",2]
[null,null,null,null,"18.00 - 22.00",2,null,null,null,null,null,null,null,null,null,null,null,null,null,null,null,null,null,null,null,null,null,null,null,null,"18.00 - 22.00",2]
[null,null,null,"restaurant","08.00 - 12.00",1,null,null,null,null,null,null,null,null,null,null,null,null,null,null,null,null,null,null,null,null,null,null,null,"tuin","08.00 - 12.00",1]
[null,null,null,null,"13.00 - 17.00",1,null,null,null,null,null,null,null,null,null,null,null,null,null,null,null,null,null,null,null,null,null,null,null,null,"13.00 - 17.00",1]
[null,null,"vrijdag","keuken","10.00 - 14.00",2,null,null,null,null,null,null,null,null,null,null,null,null,null,null,null,null,null,null,null,null,null,null,"vrijdag","keuken","10.00 - 14.00",2]
[null,null,null,null,"14.00 - 18.00",2,null,null,null,null,null,null,null,null,null,null,null,null,null,null,null,null,null,null,null,null,null,null,null,null,"14.00 - 18.00",2]
[null,null,null,null,"18.00 - 22.00",3,null,null,null,null,null,null,null,null,null,null,null,null,null,null,null,null,null,null,null,null,null,null,null,null,"18.00 - 22.00",3]
[null,null,null,"restaurant","08.00 - 12.00",2,null,null,null,null,null,null,null,null,null,null,null,null,null,null,null,null,null,null,null,null,null,null,null,"tuin","08.00 - 12.00",2]
[null,null,null,null,"13.00 - 17.00",2,null,null,null,null,null,null,null,null,null,null,null,null,null,null,null,null,null,null,null,null,null,null,null,null,"13.00 - 17.00",2]
[null,null,"zaterdag","keuken","10.00 - 14.00",2,null,null,null,null,null,null,null,null,null,null,null,null,null,null,null,null,null,null,null,null,null,null,"zaterdag","keuken","10.00 - 14.00",2]
[null,null,null,null,"14.00 - 18.00",2,null,null,null,null,null,null,null,null,null,null,null,null,null,null,null,null,null,null,null,null,null,null,null,null,"14.00 - 18.00",2]
[null,null,null,null,"18.00 - 22.00",3,null,null,null,null,null,null,null,null,null,null,null,null,null,null,null,null,null,null,null,null,null,null,null,null,"18.00 - 22.00",3]
[null,null,null,"restaurant","08.00 - 12.00",1,null,null,null,null,null,null,null,null,null,null,null,null,null,null,null,null,null,null,null,null,null,null,null,"tuin","08.00 - 12.00",1]
[null,null,null,null,"13.00 - 17.00",0,null,null,null,null,null,null,null,null,null,null,null,null,null,null,null,null,null,null,null,null,null,null,null,null,"13.00 - 17.00",0]
[null,null,"zondag","keuken","10.00 - 14.00",2,null,null,null,null,null,null,null,null,null,null,null,null,null,null,null,null,null,null,null,null,null,null,"zondag","keuken","10.00 - 14.00",2]
[null,null,null,null,"14.00 - 18.00",2,null,null,null,null,null,null,null,null,null,null,null,null,null,null,null,null,null,null,null,null,null,null,null,null,"14.00 - 18.00",2]
[null,null,null,null,"18.00 - 22.00",2,null,null,null,null,null,null,null,null,null,null,null,null,null,null,null,null,null,null,null,null,null,null,null,null,"18.00 - 22.00",2]
[null,null,null,"restaurant","08.00 - 12.00",0,null,null,null,null,null,null,null,null,null,null,null,null,null,null,null,null,null,null,null,null,null,null,null,"tuin","08.00 - 12.00",0]
[null,null,null,null,"13.00 - 17.00",0,null,null,null,null,null,null,null,null,null,null,null,null,null,null,null,null,null,null,null,null,null,null,null,null,"13.00 - 17.00",0]
[null,null,"totaal aantal dagdelen per medewerker",null,null,{"$f":"SUM(F9:F43)","v":46},0,0,0,0,0,0,0,0,null,null,null,null,null,null,null,null,null,null,null,null,null,null,"totaal aantal medewerkers per dagdeel",null,null,{"$f":"SUM(AF9:AF43)","v":46},0,0,0,0,0,0,0,0]
[]
[]
[]
[]
[]
[]
[]
[]
[null,null,null,null,null,null,null,null,null,null,null,null,null,null,null,null,null,null,null,null,null,null,null,null,null,null,null,null,"Kandidaatnaam:"]
[null,null,null,null,null,null,null,null,null,null,null,null,null,null,null,null,null,null,null,null,null,null,null,null,null,null,null,null,"Kandidaatnummer:"]
[]
[null,null,null,null,null,null,null,null,null,null,null,null,null,null,null,null,null,null,null,null,null,null,null,null,null,null,null,null,"weekrooster"]
[]
[null,null,null,null,null,null,null,null,null,null,null,null,null,null,null,null,null,null,null,null,null,null,null,null,null,null,null,null,"dag","afdeling","tijd","nodig","Finn","Daisy","Ensar","Melike","Fierle","Martijn","Jack","Luca"]
[null,null,null,null,null,null,null,null,null,null,null,null,null,null,null,null,null,null,null,null,null,null,null,null,null,null,null,null,"maandag","keuken","10.00 - 14.00",0,{"$f":"IF(AG9=G9,1,0)","v":1},{"$f":"IF(AH9=H9,1,0)","v":1},1,1,1,1,1,1]
[null,null,null,null,null,null,null,null,null,null,null,null,null,null,null,null,null,null,null,null,null,null,null,null,null,null,null,null,null,null,"14.00 - 18.00",0,{"$f":"IF(AG10=G10,1,0)","v":1},{"$f":"IF(AH10=H10,1,0)","v":1},{"$f":"IF(AI10=I10,1,0)","v":1},{"$f":"IF(AJ10=J10,1,0)","v":1},{"$f":"IF(AK10=K10,1,0)","v":1},{"$f":"IF(AL10=L10,1,0)","v":1},{"$f":"IF(AM10=M10,1,0)","v":1},{"$f":"IF(AN10=N10,1,0)","v":1}]
[null,null,null,null,null,null,null,null,null,null,null,null,null,null,null,null,null,null,null,null,null,null,null,null,null,null,null,null,null,null,"18.00 - 22.00",0,1,1,1,1,1,1,1,1]
[null,null,null,null,null,null,null,null,null,null,null,null,null,null,null,null,null,null,null,null,null,null,null,null,null,null,null,null,null,"tuin","08.00 - 12.00",0,1,1,1,1,1,1,1,1]
[null,null,null,null,null,null,null,null,null,null,null,null,null,null,null,null,null,null,null,null,null,null,null,null,null,null,null,null,null,null,"13.00 - 17.00",1]
[null,null,null,null,null,null,null,null,null,null,null,null,null,null,null,null,null,null,null,null,null,null,null,null,null,null,null,null,"dinsdag","keuken","10.00 - 14.00",0,1,1,1,1,1,1,1,1]
[null,null,null,null,null,null,null,null,null,null,null,null,null,null,null,null,null,null,null,null,null,null,null,null,null,null,null,null,null,null,"14.00 - 18.00",2]
[null,null,null,null,null,null,null,null,null,null,null,null,null,null,null,null,null,null,null,null,null,null,null,null,null,null,null,null,null,null,"18.00 - 22.00",2]
[null,null,null,null,null,null,null,null,null,null,null,null,null,null,null,null,null,null,null,null,null,null,null,null,null,null,null,null,null,"tuin","08.00 - 12.00",1]
[null,null,null,null,null,null,null,null,null,null,null,null,null,null,null,null,null,null,null,null,null,null,null,null,null,null,null,null,null,null,"13.00 - 17.00",1]
[null,null,null,null,null,null,null,null,null,null,null,null,null,null,null,null,null,null,null,null,null,null,null,null,null,null,null,null,"woensdag","keuken","10.00 - 14.00",1]
[null,null,null,null,null,null,null,null,null,null,null,null,null,null,null,null,null,null,null,null,null,null,null,null,null,null,null,null,null,null,"14.00 - 18.00",1]
[null,null,null,null,null,null,null,null,null,null,null,null,null,null,null,null,null,null,null,null,null,null,null,null,null,null,null,null,null,null,"18.00 - 22.00",2]
[null,null,null,null,null,null,null,null,null,null,null,null,null,null,null,null,null,null,null,null,null,null,null,null,null,null,null,null,null,"tuin","08.00 - 12.00",1]
[null,null,null,null,null,null,null,null,null,null,null,null,null,null,null,null,null,null,null,null,null,null,null,null,null,null,null,null,null,null,"13.00 - 17.00",1]
[null,null,null,null,null,null,null,null,null,null,null,null,null,null,null,null,null,null,null,null,null,null,null,null,null,null,null,null,"donderdag","keuken","10.00 - 14.00",2]
[null,null,null,null,null,null,null,null,null,null,null,null,null,null,null,null,null,null,null,null,null,null,null,null,null,null,null,null,null,null,"14.00 - 18.00",2]
[null,null,null,null,null,null,null,null,null,null,null,null,null,null,null,null,null,null,null,null,null,null,null,null,null,null,null,null,null,null,"18.00 - 22.00",2]
[null,null,null,null,null,null,null,null,null,null,null,null,null,null,null,null,null,null,null,null,null,null,null,null,null,null,null,null,null,"tuin","08.00 - 12.00",1]
[null,null,null,null,null,null,null,null,null,null,null,null,null,null,null,null,null,null,null,null,null,null,null,null,null,null,null,null,null,null,"13.00 - 17.00",1]
[null,null,null,null,null,null,null,null,null,null,null,null,null,null,null,null,null,null,null,null,null,null,null,null,null,null,null,null,"vrijdag","keuken","10.00 - 14.00",2]
[null,null,null,null,null,null,null,null,null,null,null,null,null,null,null,null,null,null,null,null,null,null,null,null,null,null,null,null,null,null,"14.00 - 18.00",2]
[null,null,null,null,null,null,null,null,null,null,null,null,null,null,null,null,null,null,null,null,null,null,null,null,null,null,null,null,null,null,"18.00 - 22.00",3]
[null,null,null,null,null,null,null,null,null,null,null,null,null,null,null,null,null,null,null,null,null,null,null,null,null,null,null,null,null,"tuin","08.00 - 12.00",2]
[null,null,null,null,null,null,null,null,null,null,null,null,null,null,null,null,null,null,null,null,null,null,null,null,null,null,null,null,null,null,"13.00 - 17.00",2]
[null,null,null,null,null,null,null,null,null,null,null,null,null,null,null,null,null,null,null,null,null,null,null,null,null,null,null,null,"zaterdag","keuken","10.00 - 14.00",2]
[null,null,null,null,null,null,null,null,null,null,null,null,null,null,null,null,null,null,null,null,null,null,null,null,null,null,null,null,null,null,"14.00 - 18.00",2]
[null,null,null,null,null,null,null,null,null,null,null,null,null,null,null,null,null,null,null,null,null,null,null,null,null,null,null,null,null,null,"18.00 - 22.00",3]
[null,null,null,null,null,null,null,null,null,null,null,null,null,null,null,null,null,null,null,null,null,null,null,null,null,null,null,null,null,"tuin","08.00 - 12.00",1]
[null,null,null,null,null,null,null,null,null,null,null,null,null,null,null,null,null,null,null,null,null,null,null,null,null,null,null,null,null,null,"13.00 - 17.00",0,1,1,1,1,1,1,1,1]
[null,null,null,null,null,null,null,null,null,null,null,null,null,null,null,null,null,null,null,null,null,null,null,null,null,null,null,null,"zondag","keuken","10.00 - 14.00",2]
[null,null,null,null,null,null,null,null,null,null,null,null,null,null,null,null,null,null,null,null,null,null,null,null,null,null,null,null,null,null,"14.00 - 18.00",2]
[null,null,null,null,null,null,null,null,null,null,null,null,null,null,null,null,null,null,null,null,null,null,null,null,null,null,null,null,null,null,"18.00 - 22.00",2]
[null,null,null,null,null,null,null,null,null,null,null,null,null,null,null,null,null,null,null,null,null,null,null,null,null,null,null,null,null,"tuin","08.00 - 12.00",0,1,1,1,1,1,1,1,1]
[null,null,null,null,null,null,null,null,null,null,null,null,null,null,null,null,null,null,null,null,null,null,null,null,null,null,null,null,null,null,"13.00 - 17.00",0,1,1,1,1,1,1,1,1]
[null,null,null,null,null,null,null,null,null,null,null,null,null,null,null,null,null,null,null,null,null,null,null,null,null,null,null,null,"totaal aantal medewerkers per dagdeel",null,null,{"$f":"SUM(AF59:AF93)","v":46},{"$f":"SUM(AG59:AG93)","v":8},8,8,8,8,8,8,{"$f":"SUM(AN59:AN93)","v":8}]
[]
[]
[]
[null,null,null,null,null,null,null,null,null,null,null,null,null,null,null,null,null,null,null,null,null,null,null,null,null,null,null,null,"score",{"$f":"SUM(AG94:AN94)-234","v":-170},"code"]
[]
[null,null,null,null,null,null,null,null,null,null,null,null,null,null,null,null,null,null,null,null,null,null,null,null,null,null,null,null,null,0,"K"]
[null,null,null,null,null,null,null,null,null,null,null,null,null,null,null,null,null,null,null,null,null,null,null,null,null,null,null,null,null,30,"L"]
[null,null,null,null,null,null,null,null,null,null,null,null,null,null,null,null,null,null,null,null,null,null,null,null,null,null,null,null,null,33,"H"]
[null,null,null,null,null,null,null,null,null,null,null,null,null,null,null,null,null,null,null,null,null,null,null,null,null,null,null,null,null,36,"M"]
[null,null,null,null,null,null,null,null,null,null,null,null,null,null,null,null,null,null,null,null,null,null,null,null,null,null,null,null,null,39,"N"]
[null,null,null,null,null,null,null,null,null,null,null,null,null,null,null,null,null,null,null,null,null,null,null,null,null,null,null,null,null,42,"O"]
[null,null,null,null,null,null,null,null,null,null,null,null,null,null,null,null,null,null,null,null,null,null,null,null,null,null,null,null,null,45,"P"]
[null,null,null,null,null,null,null,null,null,null,null,null,null,null,null,null,null,null,null,null,null,null,null,null,null,null,null,null,null,46,"Q"]

{"sheet":"printblad","index":1,"n_rows":92,"n_cols":41,"rows_kept":92,"cut":false,"hidden":false,"merged":[[87,28,87,30],[88,28,88,30],[89,28,89,30],[90,28,90,30],[91,28,91,31],[78,28,82,28],[78,29,80,29],[81,29,82,29],[83,28,83,30],[86,28,86,30],[68,28,72,28],[68,29,70,29],[71,29,72,29],[73,28,77,28],[73,29,75,29],[76,29,77,29],[58,28,62,28],[58,29,60,29],[61,29,62,29],[63,28,67,28],[63,29,65,29],[66,29,67,29],[48,28,52,28],[48,29,50,29],[51,29,52,29],[53,28,57,28],[53,29,55,29],[56,29,57,29],[38,28,42,28],[38,29,40,29],[41,29,42,29],[43,28,43,30],[45,28,45,39],[28,28,32,28],[28,29,30,29],[31,29,32,29],[33,28,37,28],[33,29,35,29],[36,29,37,29],[18,28,22,28],[18,29,20,29],[21,29,22,29],[23,28,27,28],[23,29,25,29],[26,29,27,29],[5,28,5,39],[8,28,12,28],[8,29,10,29],[11,29,12,29],[13,28,17,28],[13,29,15,29],[16,29,17,29],[43,2,43,4],[28,3,30,3],[31,3,32,3],[33,3,35,3],[36,3,37,3],[38,3,40,3],[41,3,42,3],[33,2,37,2],[38,2,42,2],[26,3,27,3],[13,2,17,2],[18,2,22,2],[23,2,27,2],[28,2,32,2],[13,3,15,3],[16,3,17,3],[18,3,20,3],[21,3,22,3],[23,3,25,3],[8,2,12,2],[8,3,10,3],[11,3,12,3],[5,2,5,13],[2,2,2,3],[3,2,3,3],[2,4,2,6],[3,4,3,6]]}
[]
[]
[null,null,{"$f":"weekrooster!C3","v":"Naam"},null,{"$f":"weekrooster!E3","v":0},null,null,null,null,null,null,null,null,{"$f":"\"code \"&AL87","v":"code F"}]
[null,null,{"$f":"weekrooster!C4","v":"Klas"},null,{"$f":"weekrooster!E4","v":0}]
[]
[null,null,{"$f":"weekrooster!C6","v":"weekrooster"},null,null,null,null,null,null,null,null,null,null,null,null,null,null,null,null,null,null,null,null,null,null,null,null,null,"weekrooster - CV"]
[]
[null,null,{"$f":"weekrooster!C8","v":"dag"},{"$f":"weekrooster!D8","v":"afdeling"},{"$f":"weekrooster!E8","v":"tijd"},{"$f":"weekrooster!F8","v":"nodig"},{"$f":"weekrooster!G8","v":"Finn"},{"$f":"weekrooster!H8","v":"Daisy"},{"$f":"weekrooster!I8","v":"Ensar"},{"$f":"weekrooster!J8","v":"Melike"},{"$f":"weekrooster!K8","v":"Fierle"},{"$f":"weekrooster!L8","v":"Martijn"},{"$f":"weekrooster!M8","v":"Jack"},{"$f":"weekrooster!N8","v":"Luca"},null,null,null,null,null,null,null,null,null,null,null,null,null,null,"dag","afdeling","tijd","nodig","Finn","Daisy","Ensar","Melike","Fierle","Martijn","Jack","Luca"]
[null,null,{"$f":"weekrooster!C9","v":"maandag"},{"$f":"weekrooster!D9","v":"keuken"},{"$f":"weekrooster!E9","v":"10.00 - 14.00"},"0",{"$f":"weekrooster!G9","v":0},{"$f":"weekrooster!H9","v":0},{"$f":"weekrooster!I9","v":0},{"$f":"weekrooster!J9","v":0},{"$f":"weekrooster!K9","v":0},{"$f":"weekrooster!L9","v":0},{"$f":"weekrooster!M9","v":0},{"$f":"weekrooster!N9","v":0},null,null,null,null,null,null,null,null,null,null,null,null,null,null,"maandag","keuken","10.00 - 14.00",0,null,null,null,null,null,null,null,null,{"$f":"SUM(G9:N9)","v":0}]
[null,null,null,null,{"$f":"weekrooster!E10","v":"14.00 - 18.00"},"0",{"$f":"weekrooster!G10","v":0},{"$f":"weekrooster!H10","v":0},{"$f":"weekrooster!I10","v":0},{"$f":"weekrooster!J10","v":0},{"$f":"weekrooster!K10","v":0},{"$f":"weekrooster!L10","v":0},{"$f":"weekrooster!M10","v":0},{"$f":"weekrooster!N10","v":0},null,null,null,null,null,null,null,null,null,null,null,null,null,null,null,null,"14.00 - 18.00",0,null,null,null,null,null,null,null,null,0]
[null,null,null,null,{"$f":"weekrooster!E11","v":"18.00 - 22.00"},"0",{"$f":"weekrooster!G11","v":0},{"$f":"weekrooster!H11","v":0},{"$f":"weekrooster!I11","v":0},{"$f":"weekrooster!J11","v":0},{"$f":"weekrooster!K11","v":0},{"$f":"weekrooster!L11","v":0},{"$f":"weekrooster!M11","v":0},{"$f":"weekrooster!N11","v":0},null,null,null,null,null,null,null,null,null,null,null,null,null,null,null,null,"18.00 - 22.00",0,null,null,null,null,null,null,null,null,0]
[null,null,null,{"$f":"weekrooster!D12","v":"restaurant"},{"$f":"weekrooster!E12","v":"08.00 - 12.00"},"0",{"$f":"weekrooster!G12","v":0},{"$f":"weekrooster!H12","v":0},{"$f":"weekrooster!I12","v":0},{"$f":"weekrooster!J12","v":0},{"$f":"weekrooster!K12","v":0},{"$f":"weekrooster!L12","v":0},{"$f":"weekrooster!M12","v":0},{"$f":"weekrooster!N12","v":0},null,null,null,null,null,null,null,null,null,null,null,null,null,null,null,"tuin","08.00 - 12.00",0,null,null,null,null,null,null,null,null,0]
[null,null,null,null,{"$f":"weekrooster!E13","v":"13.00 - 17.00"},{"$f":"weekrooster!F13","v":1},{"$f":"weekrooster!G13","v":0},{"$f":"weekrooster!H13","v":0},{"$f":"weekrooster!I13","v":0},{"$f":"weekrooster!J13","v":0},{"$f":"weekrooster!K13","v":0},{"$f":"weekrooster!L13","v":0},{"$f":"weekrooster!M13","v":0},{"$f":"weekrooster!N13","v":0},null,null,null,null,null,null,null,null,null,null,null,null,null,null,null,null,"13.00 - 17.00",1,null,null,null,null,null,null,1,null,{"$f":"SUM(G13:N13)","v":0}]
[null,null,{"$f":"weekrooster!C14","v":"dinsdag"},{"$f":"weekrooster!D14","v":"keuken"},{"$f":"weekrooster!E14","v":"10.00 - 14.00"},"0",{"$f":"weekrooster!G14","v":0},{"$f":"weekrooster!H14","v":0},{"$f":"weekrooster!I14","v":0},{"$f":"weekrooster!J14","v":0},{"$f":"weekrooster!K14","v":0},{"$f":"weekrooster!L14","v":0},{"$f":"weekrooster!M14","v":0},{"$f":"weekrooster!N14","v":0},null,null,null,null,null,null,null,null,null,null,null,null,null,null,"dinsdag","keuken","10.00 - 14.00",0,null,null,null,null,null,null,null,null,0]
[null,null,null,null,{"$f":"weekrooster!E15","v":"14.00 - 18.00"},{"$f":"weekrooster!F15","v":2},{"$f":"weekrooster!G15","v":0},{"$f":"weekrooster!H15","v":0},{"$f":"weekrooster!I15","v":0},{"$f":"weekrooster!J15","v":0},{"$f":"weekrooster!K15","v":0},{"$f":"weekrooster!L15","v":0},{"$f":"weekrooster!M15","v":0},{"$f":"weekrooster!N15","v":0},null,null,null,null,null,null,null,null,null,null,null,null,null,null,null,null,"14.00 - 18.00",2,1,null,1,null,null,null,null,null,0]
[null,null,null,null,{"$f":"weekrooster!E16","v":"18.00 - 22.00"},{"$f":"weekrooster!F16","v":2},{"$f":"weekrooster!G16","v":0},{"$f":"weekrooster!H16","v":0},{"$f":"weekrooster!I16","v":0},{"$f":"weekrooster!J16","v":0},{"$f":"weekrooster!K16","v":0},{"$f":"weekrooster!L16","v":0},{"$f":"weekrooster!M16","v":0},{"$f":"weekrooster!N16","v":0},null,null,null,null,null,null,null,null,null,null,null,null,null,null,null,null,"18.00 - 22.00",2,1,null,1,null,null,null,null,null,0]
[null,null,null,{"$f":"weekrooster!D17","v":"restaurant"},{"$f":"weekrooster!E17","v":"08.00 - 12.00"},{"$f":"weekrooster!F17","v":1},{"$f":"weekrooster!G17","v":0},{"$f":"weekrooster!H17","v":0},{"$f":"weekrooster!I17","v":0},{"$f":"weekrooster!J17","v":0},{"$f":"weekrooster!K17","v":0},{"$f":"weekrooster!L17","v":0},{"$f":"weekrooster!M17","v":0},{"$f":"weekrooster!N17","v":0},null,null,null,null,null,null,null,null,null,null,null,null,null,null,null,"tuin","08.00 - 12.00",1,null,null,null,null,1,null,null,null,0]
[null,null,null,null,{"$f":"weekrooster!E18","v":"13.00 - 17.00"},{"$f":"weekrooster!F18","v":1},{"$f":"weekrooster!G18","v":0},{"$f":"weekrooster!H18","v":0},{"$f":"weekrooster!I18","v":0},{"$f":"weekrooster!J18","v":0},{"$f":"weekrooster!K18","v":0},{"$f":"weekrooster!L18","v":0},{"$f":"weekrooster!M18","v":0},{"$f":"weekrooster!N18","v":0},null,null,null,null,null,null,null,null,null,null,null,null,null,null,null,null,"13.00 - 17.00",1,null,null,null,null,1,null,null,null,0]
[null,null,{"$f":"weekrooster!C19","v":"woensdag"},{"$f":"weekrooster!D19","v":"keuken"},{"$f":"weekrooster!E19","v":"10.00 - 14.00"},{"$f":"weekrooster!F19","v":1},{"$f":"weekrooster!G19","v":0},{"$f":"weekrooster!H19","v":0},{"$f":"weekrooster!I19","v":0},{"$f":"weekrooster!J19","v":0},{"$f":"weekrooster!K19","v":0},{"$f":"weekrooster!L19","v":0},{"$f":"weekrooster!M19","v":0},{"$f":"weekrooster!N19","v":0},null,null,null,null,null,null,null,null,null,null,null,null,null,null,"woensdag","keuken","10.00 - 14.00",1,null,1,null,null,null,null,null,null,0]
[null,null,null,null,{"$f":"weekrooster!E20","v":"14.00 - 18.00"},{"$f":"weekrooster!F20","v":1},{"$f":"weekrooster!G20","v":0},{"$f":"weekrooster!H20","v":0},{"$f":"weekrooster!I20","v":0},{"$f":"weekrooster!J20","v":0},{"$f":"weekrooster!K20","v":0},{"$f":"weekrooster!L20","v":0},{"$f":"weekrooster!M20","v":0},{"$f":"weekrooster!N20","v":0},null,null,null,null,null,null,null,null,null,null,null,null,null,null,null,null,"14.00 - 18.00",1,null,1,null,null,null,null,null,null,0]
[null,null,null,null,{"$f":"weekrooster!E21","v":"18.00 - 22.00"},{"$f":"weekrooster!F21","v":2},{"$f":"weekrooster!G21","v":0},{"$f":"weekrooster!H21","v":0},{"$f":"weekrooster!I21","v":0},{"$f":"weekrooster!J21","v":0},{"$f":"weekrooster!K21","v":0},{"$f":"weekrooster!L21","v":0},{"$f":"weekrooster!M21","v":0},{"$f":"weekrooster!N21","v":0},null,null,null,null,null,null,null,null,null,null,null,null,null,null,null,null,"18.00 - 22.00",2,null,null,null,null,null,1,1,null,0]
[null,null,null,{"$f":"weekrooster!D22","v":"restaurant"},{"$f":"weekrooster!E22","v":"08.00 - 12.00"},{"$f":"weekrooster!F22","v":1},{"$f":"weekrooster!G22","v":0},{"$f":"weekrooster!H22","v":0},{"$f":"weekrooster!I22","v":0},{"$f":"weekrooster!J22","v":0},{"$f":"weekrooster!K22","v":0},{"$f":"weekrooster!L22","v":0},{"$f":"weekrooster!M22","v":0},{"$f":"weekrooster!N22","v":0},null,null,null,null,null,null,null,null,null,null,null,null,null,null,null,"tuin","08.00 - 12.00",1,null,null,null,null,1,null,null,null,0]
[null,null,null,null,{"$f":"weekrooster!E23","v":"13.00 - 17.00"},{"$f":"weekrooster!F23","v":1},{"$f":"weekrooster!G23","v":0},{"$f":"weekrooster!H23","v":0},{"$f":"weekrooster!I23","v":0},{"$f":"weekrooster!J23","v":0},{"$f":"weekrooster!K23","v":0},{"$f":"weekrooster!L23","v":0},{"$f":"weekrooster!M23","v":0},{"$f":"weekrooster!N23","v":0},null,null,null,null,null,null,null,null,null,null,null,null,null,null,null,null,"13.00 - 17.00",1,null,null,null,null,1,null,null,null,0]
[null,null,{"$f":"weekrooster!C24","v":"donderdag"},{"$f":"weekrooster!D24","v":"keuken"},{"$f":"weekrooster!E24","v":"10.00 - 14.00"},{"$f":"weekrooster!F24","v":2},{"$f":"weekrooster!G24","v":0},{"$f":"weekrooster!H24","v":0},{"$f":"weekrooster!I24","v":0},{"$f":"weekrooster!J24","v":0},{"$f":"weekrooster!K24","v":0},{"$f":"weekrooster!L24","v":0},{"$f":"weekrooster!M24","v":0},{"$f":"weekrooster!N24","v":0},null,null,null,null,null,null,null,null,null,null,null,null,null,null,"donderdag","keuken","10.00 - 14.00",2,null,1,1,null,null,null,null,null,0]
[null,null,null,null,{"$f":"weekrooster!E25","v":"14.00 - 18.00"},{"$f":"weekrooster!F25","v":2},{"$f":"weekrooster!G25","v":0},{"$f":"weekrooster!H25","v":0},{"$f":"weekrooster!I25","v":0},{"$f":"weekrooster!J25","v":0},{"$f":"weekrooster!K25","v":0},{"$f":"weekrooster!L25","v":0},{"$f":"weekrooster!M25","v":0},{"$f":"weekrooster!N25","v":0},null,null,null,null,null,null,null,null,null,null,null,null,null,null,null,null,"14.00 - 18.00",2,1,null,1,null,null,null,null,null,0]
[null,null,null,null,{"$f":"weekrooster!E26","v":"18.00 - 22.00"},{"$f":"weekrooster!F26","v":2},{"$f":"weekrooster!G26","v":0},{"$f":"weekrooster!H26","v":0},{"$f":"weekrooster!I26","v":0},{"$f":"weekrooster!J26","v":0},{"$f":"weekrooster!K26","v":0},{"$f":"weekrooster!L26","v":0},{"$f":"weekrooster!M26","v":0},{"$f":"weekrooster!N26","v":0},null,null,null,null,null,null,null,null,null,null,null,null,null,null,null,null,"18.00 - 22.00",2,1,null,null,null,null,1,null,null,0]
[null,null,null,{"$f":"weekrooster!D27","v":"restaurant"},{"$f":"weekrooster!E27","v":"08.00 - 12.00"},{"$f":"weekrooster!F27","v":1},{"$f":"weekrooster!G27","v":0},{"$f":"weekrooster!H27","v":0},{"$f":"weekrooster!I27","v":0},{"$f":"weekrooster!J27","v":0},{"$f":"weekrooster!K27","v":0},{"$f":"weekrooster!L27","v":0},{"$f":"weekrooster!M27","v":0},{"$f":"weekrooster!N27","v":0},null,null,null,null,null,null,null,null,null,null,null,null,null,null,null,"tuin","08.00 - 12.00",1,null,null,null,null,1,null,null,null,0]
[null,null,null,null,{"$f":"weekrooster!E28","v":"13.00 - 17.00"},{"$f":"weekrooster!F28","v":1},{"$f":"weekrooster!G28","v":0},{"$f":"weekrooster!H28","v":0},{"$f":"weekrooster!I28","v":0},{"$f":"weekrooster!J28","v":0},{"$f":"weekrooster!K28","v":0},{"$f":"weekrooster!L28","v":0},{"$f":"weekrooster!M28","v":0},{"$f":"weekrooster!N28","v":0},null,null,null,null,null,null,null,null,null,null,null,null,null,null,null,null,"13.00 - 17.00",1,null,null,null,null,1,null,null,null,0]
[null,null,{"$f":"weekrooster!C29","v":"vrijdag"},{"$f":"weekrooster!D29","v":"keuken"},{"$f":"weekrooster!E29","v":"10.00 - 14.00"},{"$f":"weekrooster!F29","v":2},{"$f":"weekrooster!G29","v":0},{"$f":"weekrooster!H29","v":0},{"$f":"weekrooster!I29","v":0},{"$f":"weekrooster!J29","v":0},{"$f":"weekrooster!K29","v":0},{"$f":"weekrooster!L29","v":0},{"$f":"weekrooster!M29","v":0},{"$f":"weekrooster!N29","v":0},null,null,null,null,null,null,null,null,null,null,null,null,null,null,"vrijdag","keuken","10.00 - 14.00",2,null,1,1,null,null,null,null,null,0]
[null,null,null,null,{"$f":"weekrooster!E30","v":"14.00 - 18.00"},{"$f":"weekrooster!F30","v":2},{"$f":"weekrooster!G30","v":0},{"$f":"weekrooster!H30","v":0},{"$f":"weekrooster!I30","v":0},{"$f":"weekrooster!J30","v":0},{"$f":"weekrooster!K30","v":0},{"$f":"weekrooster!L30","v":0},{"$f":"weekrooster!M30","v":0},{"$f":"weekrooster!N30","v":0},null,null,null,null,null,null,null,null,null,null,null,null,null,null,null,null,"14.00 - 18.00",2,1,null,1,null,null,null,null,null,0]
[null,null,null,null,{"$f":"weekrooster!E31","v":"18.00 - 22.00"},{"$f":"weekrooster!F31","v":3},{"$f":"weekrooster!G31","v":0},{"$f":"weekrooster!H31","v":0},{"$f":"weekrooster!I31","v":0},{"$f":"weekrooster!J31","v":0},{"$f":"weekrooster!K31","v":0},{"$f":"weekrooster!L31","v":0},{"$f":"weekrooster!M31","v":0},{"$f":"weekrooster!N31","v":0},null,null,null,null,null,null,null,null,null,null,null,null,null,null,null,null,"18.00 - 22.00",3,1,null,null,null,null,1,null,1,0]
[null,null,null,{"$f":"weekrooster!D32","v":"restaurant"},{"$f":"weekrooster!E32","v":"08.00 - 12.00"},{"$f":"weekrooster!F32","v":2},{"$f":"weekrooster!G32","v":0},{"$f":"weekrooster!H32","v":0},{"$f":"weekrooster!I32","v":0},{"$f":"weekrooster!J32","v":0},{"$f":"weekrooster!K32","v":0},{"$f":"weekrooster!L32","v":0},{"$f":"weekrooster!M32","v":0},{"$f":"weekrooster!N32","v":0},null,null,null,null,null,null,null,null,null,null,null,null,null,null,null,"tuin","08.00 - 12.00",2,null,null,null,null,1,null,1,null,0]
[null,null,null,null,{"$f":"weekrooster!E33","v":"13.00 - 17.00"},{"$f":"weekrooster!F33","v":2},{"$f":"weekrooster!G33","v":0},{"$f":"weekrooster!H33","v":0},{"$f":"weekrooster!I33","v":0},{"$f":"weekrooster!J33","v":0},{"$f":"weekrooster!K33","v":0},{"$f":"weekrooster!L33","v":0},{"$f":"weekrooster!M33","v":0},{"$f":"weekrooster!N33","v":0},null,null,null,null,null,null,null,null,null,null,null,null,null,null,null,null,"13.00 - 17.00",2,null,null,null,null,1,null,1,null,0]
[null,null,{"$f":"weekrooster!C34","v":"zaterdag"},{"$f":"weekrooster!D34","v":"keuken"},{"$f":"weekrooster!E34","v":"10.00 - 14.00"},{"$f":"weekrooster!F34","v":2},{"$f":"weekrooster!G34","v":0},{"$f":"weekrooster!H34","v":0},{"$f":"weekrooster!I34","v":0},{"$f":"weekrooster!J34","v":0},{"$f":"weekrooster!K34","v":0},{"$f":"weekrooster!L34","v":0},{"$f":"weekrooster!M34","v":0},{"$f":"weekrooster!N34","v":0},null,null,null,null,null,null,null,null,null,null,null,null,null,null,"zaterdag","keuken","10.00 - 14.00",2,null,1,1,null,null,null,null,null,0]
[null,null,null,null,{"$f":"weekrooster!E35","v":"14.00 - 18.00"},{"$f":"weekrooster!F35","v":2},{"$f":"weekrooster!G35","v":0},{"$f":"weekrooster!H35","v":0},{"$f":"weekrooster!I35","v":0},{"$f":"weekrooster!J35","v":0},{"$f":"weekrooster!K35","v":0},{"$f":"weekrooster!L35","v":0},{"$f":"weekrooster!M35","v":0},{"$f":"weekrooster!N35","v":0},null,null,null,null,null,null,null,null,null,null,null,null,null,null,null,null,"14.00 - 18.00",2,1,null,1,null,null,null,null,null,0]
[null,null,null,null,{"$f":"weekrooster!E36","v":"18.00 - 22.00"},{"$f":"weekrooster!F36","v":3},{"$f":"weekrooster!G36","v":0},{"$f":"weekrooster!H36","v":0},{"$f":"weekrooster!I36","v":0},{"$f":"weekrooster!J36","v":0},{"$f":"weekrooster!K36","v":0},{"$f":"weekrooster!L36","v":0},{"$f":"weekrooster!M36","v":0},{"$f":"weekrooster!N36","v":0},null,null,null,null,null,null,null,null,null,null,null,null,null,null,null,null,"18.00 - 22.00",3,1,null,null,null,null,null,1,1,0]
[null,null,null,{"$f":"weekrooster!D37","v":"restaurant"},{"$f":"weekrooster!E37","v":"08.00 - 12.00"},{"$f":"weekrooster!F37","v":1},{"$f":"weekrooster!G37","v":0},{"$f":"weekrooster!H37","v":0},{"$f":"weekrooster!I37","v":0},{"$f":"weekrooster!J37","v":0},{"$f":"weekrooster!K37","v":0},{"$f":"weekrooster!L37","v":0},{"$f":"weekrooster!M37","v":0},{"$f":"weekrooster!N37","v":0},null,null,null,null,null,null,null,null,null,null,null,null,null,null,null,"tuin","08.00 - 12.00",1,null,null,null,null,1,null,null,null,0]
[null,null,null,null,{"$f":"weekrooster!E38","v":"13.00 - 17.00"},"0",{"$f":"weekrooster!G38","v":0},{"$f":"weekrooster!H38","v":0},{"$f":"weekrooster!I38","v":0},{"$f":"weekrooster!J38","v":0},{"$f":"weekrooster!K38","v":0},{"$f":"weekrooster!L38","v":0},{"$f":"weekrooster!M38","v":0},{"$f":"weekrooster!N38","v":0},null,null,null,null,null,null,null,null,null,null,null,null,null,null,null,null,"13.00 - 17.00",0,null,null,null,null,null,null,null,null,0]
[null,null,{"$f":"weekrooster!C39","v":"zondag"},{"$f":"weekrooster!D39","v":"keuken"},{"$f":"weekrooster!E39","v":"10.00 - 14.00"},{"$f":"weekrooster!F39","v":2},{"$f":"weekrooster!G39","v":0},{"$f":"weekrooster!H39","v":0},{"$f":"weekrooster!I39","v":0},{"$f":"weekrooster!J39","v":0},{"$f":"weekrooster!K39","v":0},{"$f":"weekrooster!L39","v":0},{"$f":"weekrooster!M39","v":0},{"$f":"weekrooster!N39","v":0},null,null,null,null,null,null,null,null,null,null,null,null,null,null,"zondag","keuken","10.00 - 14.00",2,null,1,null,1,null,null,null,null,0]
[null,null,null,null,{"$f":"weekrooster!E40","v":"14.00 - 18.00"},{"$f":"weekrooster!F40","v":2},{"$f":"weekrooster!G40","v":0},{"$f":"weekrooster!H40","v":0},{"$f":"weekrooster!I40","v":0},{"$f":"weekrooster!J40","v":0},{"$f":"weekrooster!K40","v":0},{"$f":"weekrooster!L40","v":0},{"$f":"weekrooster!M40","v":0},{"$f":"weekrooster!N40","v":0},null,null,null,null,null,null,null,null,null,null,null,null,null,null,null,null,"14.00 - 18.00",2,1,null,null,null,null,null,1,null,0]
[null,null,null,null,{"$f":"weekrooster!E41","v":"18.00 - 22.00"},{"$f":"weekrooster!F41","v":2},{"$f":"weekrooster!G41","v":0},{"$f":"weekrooster!H41","v":0},{"$f":"weekrooster!I41","v":0},{"$f":"weekrooster!J41","v":0},{"$f":"weekrooster!K41","v":0},{"$f":"weekrooster!L41","v":0},{"$f":"weekrooster!M41","v":0},{"$f":"weekrooster!N41","v":0},null,null,null,null,null,null,null,null,null,null,null,null,null,null,null,null,"18.00 - 22.00",2,1,null,null,null,null,null,1,null,0]
[null,null,null,{"$f":"weekrooster!D42","v":"restaurant"},{"$f":"weekrooster!E42","v":"08.00 - 12.00"},"0",{"$f":"weekrooster!G42","v":0},{"$f":"weekrooster!H42","v":0},{"$f":"weekrooster!I42","v":0},{"$f":"weekrooster!J42","v":0},{"$f":"weekrooster!K42","v":0},{"$f":"weekrooster!L42","v":0},{"$f":"weekrooster!M42","v":0},{"$f":"weekrooster!N42","v":0},null,null,null,null,null,null,null,null,null,null,null,null,null,null,null,"tuin","08.00 - 12.00",0,null,null,null,null,null,null,null,null,0]
[null,null,null,null,{"$f":"weekrooster!E43","v":"13.00 - 17.00"},"0",{"$f":"weekrooster!G43","v":0},{"$f":"weekrooster!H43","v":0},{"$f":"weekrooster!I43","v":0},{"$f":"weekrooster!J43","v":0},{"$f":"weekrooster!K43","v":0},{"$f":"weekrooster!L43","v":0},{"$f":"weekrooster!M43","v":0},{"$f":"weekrooster!N43","v":0},null,null,null,null,null,null,null,null,null,null,null,null,null,null,null,null,"13.00 - 17.00",0,null,null,null,null,null,null,null,null,0]
[null,null,{"$f":"weekrooster!C44","v":"totaal aantal dagdelen per medewerker"},null,null,{"$f":"weekrooster!F44","v":46},{"$f":"weekrooster!G44","v":0},{"$f":"weekrooster!H44","v":0},{"$f":"weekrooster!I44","v":0},{"$f":"weekrooster!J44","v":0},{"$f":"weekrooster!K44","v":0},{"$f":"weekrooster!L44","v":0},{"$f":"weekrooster!M44","v":0},{"$f":"weekrooster!N44","v":0},null,null,null,null,null,null,null,null,null,null,null,null,null,null,"totaal aantal medewerkers per dagdeel",null,null,46,10,6,8,1,9,3,7,2]
[null,null,null,null,null,null,null,null,null,null,null,null,null,null,null,null,null,null,null,null,null,null,null,null,null,null,null,null,null,null,null,{"$f":"SUM(F9:F43)","v":46},{"$f":"SUM(G9:G43)","v":0},0,0,0,0,0,0,0]
[null,null,null,null,null,null,null,null,null,null,null,null,null,null,null,null,null,null,null,null,null,null,null,null,null,null,null,null,"weekrooster - vergelijking"]
[]
[null,null,null,null,null,null,null,null,null,null,null,null,null,null,null,null,null,null,null,null,null,null,null,null,null,null,null,null,"dag","afdeling","tijd","nodig","Finn","Daisy","Ensar","Melike","Fierle","Martijn","Jack","Luca"]
[null,null,null,null,null,null,null,null,null,null,null,null,null,null,null,null,null,null,null,null,null,null,null,null,null,null,null,null,"maandag","keuken","10.00 - 14.00",{"$f":"IF(F9=AF9,1,0)","v":0},{"$f":"IF(G9=AG9,1,0)","v":1},1,1,1,1,1,1,1,{"$f":"IF(AF9=AO9,1,0)","v":1}]
[null,null,null,null,null,null,null,null,null,null,null,null,null,null,null,null,null,null,null,null,null,null,null,null,null,null,null,null,null,null,"14.00 - 18.00",{"$f":"IF(F10=AF10,1,0)","v":0},1,1,1,1,1,1,1,1,{"$f":"IF(AF10=AO10,1,0)","v":1}]
[null,null,null,null,null,null,null,null,null,null,null,null,null,null,null,null,null,null,null,null,null,null,null,null,null,null,null,null,null,null,"18.00 - 22.00",0,1,1,1,1,1,1,1,1,1]
[null,null,null,null,null,null,null,null,null,null,null,null,null,null,null,null,null,null,null,null,null,null,null,null,null,null,null,null,null,"tuin","08.00 - 12.00",0,1,1,1,1,1,1,1,1,1]
[null,null,null,null,null,null,null,null,null,null,null,null,null,null,null,null,null,null,null,null,null,null,null,null,null,null,null,null,null,null,"13.00 - 17.00",1,1,1,1,1,1,1,0,1,0]
[null,null,null,null,null,null,null,null,null,null,null,null,null,null,null,null,null,null,null,null,null,null,null,null,null,null,null,null,"dinsdag","keuken","10.00 - 14.00",0,1,1,1,1,1,1,1,1,1]
[null,null,null,null,null,null,null,null,null,null,null,null,null,null,null,null,null,null,null,null,null,null,null,null,null,null,null,null,null,null,"14.00 - 18.00",1,0,1,0,1,1,1,1,1,0]
[null,null,null,null,null,null,null,null,null,null,null,null,null,null,null,null,null,null,null,null,null,null,null,null,null,null,null,null,null,null,"18.00 - 22.00",1,0,1,0,1,1,1,1,1,0]
[null,null,null,null,null,null,null,null,null,null,null,null,null,null,null,null,null,null,null,null,null,null,null,null,null,null,null,null,null,"tuin","08.00 - 12.00",1,1,1,1,1,0,1,1,1,0]
[null,null,null,null,null,null,null,null,null,null,null,null,null,null,null,null,null,null,null,null,null,null,null,null,null,null,null,null,null,null,"13.00 - 17.00",1,1,1,1,1,0,1,1,1,0]
[null,null,null,null,null,null,null,null,null,null,null,null,null,null,null,null,null,null,null,null,null,null,null,null,null,null,null,null,"woensdag","keuken","10.00 - 14.00",1,1,0,1,1,1,1,1,1,0]
[null,null,null,null,null,null,null,null,null,null,null,null,null,null,null,null,null,null,null,null,null,null,null,null,null,null,null,null,null,null,"14.00 - 18.00",1,1,0,1,1,1,1,1,1,0]
[null,null,null,null,null,null,null,null,null,null,null,null,null,null,null,null,null,null,null,null,null,null,null,null,null,null,null,null,null,null,"18.00 - 22.00",1,1,1,1,1,1,0,0,1,0]
[null,null,null,null,null,null,null,null,null,null,null,null,null,null,null,null,null,null,null,null,null,null,null,null,null,null,null,null,null,"tuin","08.00 - 12.00",1,1,1,1,1,0,1,1,1,0]
[null,null,null,null,null,null,null,null,null,null,null,null,null,null,null,null,null,null,null,null,null,null,null,null,null,null,null,null,null,null,"13.00 - 17.00",1,1,1,1,1,0,1,1,1,0]
[null,null,null,null,null,null,null,null,null,null,null,null,null,null,null,null,null,null,null,null,null,null,null,null,null,null,null,null,"donderdag","keuken","10.00 - 14.00",1,1,0,0,1,1,1,1,1,0]
[null,null,null,null,null,null,null,null,null,null,null,null,null,null,null,null,null,null,null,null,null,null,null,null,null,null,null,null,null,null,"14.00 - 18.00",1,{"$f":"IF(G25=AG25,1,0)","v":0},{"$f":"IF(H25=AH25,1,0)","v":1},{"$f":"IF(I25=AI25,1,0)","v":0},{"$f":"IF(J25=AJ25,1,0)","v":1},{"$f":"IF(K25=AK25,1,0)","v":1},{"$f":"IF(L25=AL25,1,0)","v":1},{"$f":"IF(M25=AM25,1,0)","v":1},{"$f":"IF(N25=AN25,1,0)","v":1},0]
[null,null,null,null,null,null,null,null,null,null,null,null,null,null,null,null,null,null,null,null,null,null,null,null,null,null,null,null,null,null,"18.00 - 22.00",1,0,1,1,1,1,0,1,1,0]
[null,null,null,null,null,null,null,null,null,null,null,null,null,null,null,null,null,null,null,null,null,null,null,null,null,null,null,null,null,"tuin","08.00 - 12.00",1,1,1,1,1,0,1,1,1,0]
[null,null,null,null,null,null,null,null,null,null,null,null,null,null,null,null,null,null,null,null,null,null,null,null,null,null,null,null,null,null,"13.00 - 17.00",1,1,1,1,1,0,1,1,1,0]
[null,null,null,null,null,null,null,null,null,null,null,null,null,null,null,null,null,null,null,null,null,null,null,null,null,null,null,null,"vrijdag","keuken","10.00 - 14.00",1,1,0,0,1,1,1,1,1,0]
[null,null,null,null,null,null,null,null,null,null,null,null,null,null,null,null,null,null,null,null,null,null,null,null,null,null,null,null,null,null,"14.00 - 18.00",1,0,1,0,1,1,1,1,1,0]
[null,null,null,null,null,null,null,null,null,null,null,null,null,null,null,null,null,null,null,null,null,null,null,null,null,null,null,null,null,null,"18.00 - 22.00",1,0,1,1,1,1,0,1,0,0]
[null,null,null,null,null,null,null,null,null,null,null,null,null,null,null,null,null,null,null,null,null,null,null,null,null,null,null,null,null,"tuin","08.00 - 12.00",1,1,1,1,1,0,1,0,1,0]
[null,null,null,null,null,null,null,null,null,null,null,null,null,null,null,null,null,null,null,null,null,null,null,null,null,null,null,null,null,null,"13.00 - 17.00",1,1,1,1,1,0,1,0,1,0]
[null,null,null,null,null,null,null,null,null,null,null,null,null,null,null,null,null,null,null,null,null,null,null,null,null,null,null,null,"zaterdag","keuken","10.00 - 14.00",1,1,0,0,1,1,1,1,1,0]
[null,null,null,null,null,null,null,null,null,null,null,null,null,null,null,null,null,null,null,null,null,null,null,null,null,null,null,null,null,null,"14.00 - 18.00",1,0,1,0,1,1,1,1,1,0]
[null,null,null,null,null,null,null,null,null,null,null,null,null,null,null,null,null,null,null,null,null,null,null,null,null,null,null,null,null,null,"18.00 - 22.00",1,0,1,1,1,1,1,0,0,0]
[null,null,null,null,null,null,null,null,null,null,null,null,null,null,null,null,null,null,null,null,null,null,null,null,null,null,null,null,null,"tuin","08.00 - 12.00",1,1,1,1,1,0,1,1,1,0]
[null,null,null,null,null,null,null,null,null,null,null,null,null,null,null,null,null,null,null,null,null,null,null,null,null,null,null,null,null,null,"13.00 - 17.00",0,1,1,1,1,1,1,1,1,1]
[null,null,null,null,null,null,null,null,null,null,null,null,null,null,null,null,null,null,null,null,null,null,null,null,null,null,null,null,"zondag","keuken","10.00 - 14.00",1,1,0,1,0,1,1,1,1,0]
[null,null,null,null,null,null,null,null,null,null,null,null,null,null,null,null,null,null,null,null,null,null,null,null,null,null,null,null,null,null,"14.00 - 18.00",1,0,1,1,1,1,1,0,1,0]
[null,null,null,null,null,null,null,null,null,null,null,null,null,null,null,null,null,null,null,null,null,null,null,null,null,null,null,null,null,null,"18.00 - 22.00",1,0,1,1,1,1,1,0,1,0]
[null,null,null,null,null,null,null,null,null,null,null,null,null,null,null,null,null,null,null,null,null,null,null,null,null,null,null,null,null,"tuin","08.00 - 12.00",0,1,1,1,1,1,1,1,1,1]
[null,null,null,null,null,null,null,null,null,null,null,null,null,null,null,null,null,null,null,null,null,null,null,null,null,null,null,null,null,null,"13.00 - 17.00",0,1,1,1,1,1,1,1,1,1]
[null,null,null,null,null,null,null,null,null,null,null,null,null,null,null,null,null,null,null,null,null,null,null,null,null,null,null,null,"totaal aantal medewerkers per dagdeel",null,null,1,0,0,0,0,0,0,0,0]
[null,null,null,null,null,null,null,null,null,null,null,null,null,null,null,null,null,null,null,null,null,null,null,null,null,null,null,null,null,null,null,{"$f":"IF(AF45=AF44,1,0)","v":1},{"$f":"IF(AG45=AG44,1,0)","v":0},0,0,0,0,0,0,0]
[]
[null,null,null,null,null,null,null,null,null,null,null,null,null,null,null,null,null,null,null,null,null,null,null,null,null,null,null,null,"per dagdeel alles goed (35)",null,null,{"$f":"SUM(AO49:AO83)","v":8},{"$f":"IF(AF87=35,1,0)","v":0},null,null,5,"A",{"$f":"VLOOKUP(AG92,AJ87:AK92,2,FALSE)","v":"F"}]
[null,null,null,null,null,null,null,null,null,null,null,null,null,null,null,null,null,null,null,null,null,null,null,null,null,null,null,null,"per medewerker alles goed (8)",null,null,{"$f":"SUM(AG85:AN85)","v":0},{"$f":"IF(AF88=8,1,0)","v":0},null,null,4,"B"]
[null,null,null,null,null,null,null,null,null,null,null,null,null,null,null,null,null,null,null,null,null,null,null,null,null,null,null,null,"per cel alles goed (280)",null,null,{"$f":"SUM($AG$49:$AN$83)","v":234},{"$f":"IF(AF89=280,1,0)","v":0},null,null,3,"C"]
[null,null,null,null,null,null,null,null,null,null,null,null,null,null,null,null,null,null,null,null,null,null,null,null,null,null,null,null,"per cel max. 10 fouten (270-279)",null,null,{"$f":"SUM($AG$49:$AN$83)","v":234},{"$f":"IF(AF90>=270,1,0)","v":0},null,null,2,"D"]
[null,null,null,null,null,null,null,null,null,null,null,null,null,null,null,null,null,null,null,null,null,null,null,null,null,null,null,null,"per cel max. 20 fouten (260-269)",null,null,234,{"$f":"IF(AF91>=270,1,0)","v":0},null,null,1,"E"]
[null,null,null,null,null,null,null,null,null,null,null,null,null,null,null,null,null,null,null,null,null,null,null,null,null,null,null,null,"totaal",null,null,null,{"$f":"SUM(AG87:AG91)","v":0},null,null,0,"F"]